[Event "Titled Tuesday Blitz June 21 Early 2022"]
[White "Zhigalko, Sergei"]
[Black "Coto Mederos, Michel"]
[WhiteFideId "13502956"]
[BlackFideId "3508528"]
[WhiteElo "2662"]
[BlackElo "2427"]
[Result "1-0"]
[Round "03"]
[TimeControl "180+1"]
[Date "2022.06.22"]
[WhiteClock "0:00:09"]
[BlackClock "0:00:04"]

1. e4 {[%clk 0:03:00]}  e5 {[%clk 0:02:53]} 2. Nf3 {[%clk 0:03:01]}  Nc6 {[%clk 0:02:53]} 3. Bc4 {[%clk 0:03:01]}  Bc5 {[%clk 0:02:52]} 4. b4 {[%clk 0:03:02]}  Bb6 {[%clk 0:02:51]} 5. a4 {[%clk 0:03:01]}  a6 {[%clk 0:02:49]} 6. Nc3 {[%clk 0:03:02]}  d6 {[%clk 0:02:46]} 7. Nd5 {[%clk 0:03:02]}  Ba7 {[%clk 0:02:41]} 8. d3 {[%clk 0:02:59]}  h6 {[%clk 0:02:28]} 9. O-O {[%clk 0:02:53]}  Nf6 {[%clk 0:02:22]} 10. c3 {[%clk 0:02:51]}  O-O {[%clk 0:02:19]} 11. Be3 {[%clk 0:02:50]}  Bxe3 {[%clk 0:01:51]} 12. fxe3 {[%clk 0:02:48]}  Be6 {[%clk 0:01:49]} 13. Nxf6+ {[%clk 0:02:39]}  Qxf6 {[%clk 0:01:50]} 14. Ba2 {[%clk 0:02:04]}  Bxa2 {[%clk 0:01:34]} 15. Rxa2 {[%clk 0:02:05]}  Qe6 {[%clk 0:01:35]} 16. Raf2 {[%clk 0:02:01]}  d5 {[%clk 0:01:21]} 17. exd5 {[%clk 0:01:46]}  Qxd5 {[%clk 0:01:22]} 18. e4 {[%clk 0:01:47]}  Qe6 {[%clk 0:01:22]} 19. Nh4 {[%clk 0:01:45]}  Rad8 {[%clk 0:01:18]} 20. Rf3 {[%clk 0:01:13]}  Rd7 {[%clk 0:01:08]} 21. Rg3 {[%clk 0:01:12]}  Ne7 {[%clk 0:01:04]} 22. Qh5 {[%clk 0:01:01]}  Kh7 {[%clk 0:00:51]} 23. Nf3 {[%clk 0:00:49]}  Kg8 {[%clk 0:00:33]} 24. Nxe5 {[%clk 0:00:44]}  Rd6 {[%clk 0:00:28]} 25. Ng4 {[%clk 0:00:40]}  Kh7 {[%clk 0:00:21]} 26. e5 {[%clk 0:00:25]}  Rd5 {[%clk 0:00:17]} 27. Rf6 {[%clk 0:00:18]}  Rxe5 {[%clk 0:00:12]} 28. Rxe6 {[%clk 0:00:10]}  Rxh5 {[%clk 0:00:08]} 29. Rxe7 {[%clk 0:00:11]}  Rd8 {[%clk 0:00:07]} 30. d4 {[%clk 0:00:11]}  a5 {[%clk 0:00:05]} 31. b5 {[%clk 0:00:10]}  c6 {[%clk 0:00:05]} 32. b6 {[%clk 0:00:10]}  c5 {[%clk 0:00:05]} 33. Rxf7 {[%clk 0:00:10]}  cxd4 {[%clk 0:00:05]} 34. Nf6+ {[%clk 0:00:11]}  Kh8 {[%clk 0:00:05]} 35. Nxh5 {[%clk 0:00:10]}  d3 {[%clk 0:00:05]} 36. Rf1 {[%clk 0:00:09]}  d2 {[%clk 0:00:06]} 37. Rd1 {[%clk 0:00:09]}  Rd5 {[%clk 0:00:05]} 38. Nf4 {[%clk 0:00:09]}  Rd6 {[%clk 0:00:05]} 39. Rg6 {[%clk 0:00:08]}  Rd7 {[%clk 0:00:05]} 40. Re6 {[%clk 0:00:08]}  Kg8 {[%clk 0:00:05]} 41. Re2 {[%clk 0:00:08]}  Kf7 {[%clk 0:00:05]} 42. Rdxd2 {[%clk 0:00:08]}  Rxd2 {[%clk 0:00:04]} 43. Rxd2 {[%clk 0:00:09]} 1-0


[Site "https://www.chess.com"]

[Event "Titled Tuesday Blitz June 21 Early 2022"]
[White "parintele_chess"]
[Black "Snehal, Bhosale"]
[BlackFideId "5021995"]
[WhiteElo "2260"]
[BlackElo "2103"]
[Result "0-1"]
[Round "03"]
[TimeControl "180+1"]
[Date "2022.06.22"]
[WhiteClock "0:00:01"]
[BlackClock "0:00:13"]

1. d4 {[%clk 0:02:59]}  d5 {[%clk 0:02:59]} 2. c4 {[%clk 0:02:59]}  c6 {[%clk 0:02:59]} 3. Nc3 {[%clk 0:02:58]}  Nf6 {[%clk 0:03:00]} 4. e3 {[%clk 0:02:58]}  a6 {[%clk 0:03:00]} 5. Nf3 {[%clk 0:02:48]}  Bf5 {[%clk 0:02:59]} 6. Bd3 {[%clk 0:02:48]}  Bxd3 {[%clk 0:02:52]} 7. Qxd3 {[%clk 0:02:49]}  b5 {[%clk 0:02:52]} 8. b3 {[%clk 0:02:49]}  Nbd7 {[%clk 0:02:47]} 9. O-O {[%clk 0:02:46]}  e6 {[%clk 0:02:47]} 10. e4 {[%clk 0:02:40]}  b4 {[%clk 0:02:42]} 11. e5 {[%clk 0:02:34]}  bxc3 {[%clk 0:02:42]} 12. exf6 {[%clk 0:02:34]}  Qxf6 {[%clk 0:02:42]} 13. Qxc3 {[%clk 0:02:32]}  h6 {[%clk 0:02:22]} 14. cxd5 {[%clk 0:02:16]}  cxd5 {[%clk 0:02:21]} 15. Qc6 {[%clk 0:02:13]}  Qd8 {[%clk 0:02:21]} 16. Ne5 {[%clk 0:02:11]}  Ra7 {[%clk 0:02:12]} 17. Re1 {[%clk 0:02:03]}  Bb4 {[%clk 0:02:09]} 18. Nxf7 {[%clk 0:01:35]}  Kxf7 {[%clk 0:01:54]} 19. Qxe6+ {[%clk 0:01:33]}  Kf8 {[%clk 0:01:54]} 20. Re3 {[%clk 0:01:19]}  Nf6 {[%clk 0:01:54]} 21. a3 {[%clk 0:00:56]}  Bd6 {[%clk 0:01:50]} 22. Bb2 {[%clk 0:00:35]}  Re7 {[%clk 0:01:49]} 23. Qf5 {[%clk 0:00:34]}  Kf7 {[%clk 0:01:40]} 24. Rae1 {[%clk 0:00:26]}  Rhe8 {[%clk 0:01:36]} 25. Qf3 {[%clk 0:00:11]}  Kg8 {[%clk 0:01:32]} 26. b4 {[%clk 0:00:09]}  Rxe3 {[%clk 0:01:30]} 27. fxe3 {[%clk 0:00:10]}  Ne4 {[%clk 0:01:27]} 28. Qh5 {[%clk 0:00:10]}  Kh8 {[%clk 0:01:23]} 29. Rf1 {[%clk 0:00:10]}  Rf8 {[%clk 0:01:20]} 30. Rf7 {[%clk 0:00:10]}  Rxf7 {[%clk 0:01:08]} 31. Qxf7 {[%clk 0:00:10]}  Qf8 {[%clk 0:01:07]} 32. Qxf8+ {[%clk 0:00:11]}  Bxf8 {[%clk 0:01:08]} 33. g3 {[%clk 0:00:09]}  Be7 {[%clk 0:01:03]} 34. Kg2 {[%clk 0:00:08]}  Kg8 {[%clk 0:01:03]} 35. Kf3 {[%clk 0:00:09]}  Kf7 {[%clk 0:01:02]} 36. Kf4 {[%clk 0:00:08]}  Ke6 {[%clk 0:01:00]} 37. h4 {[%clk 0:00:07]}  Bd6+ {[%clk 0:01:00]} 38. Kg4 {[%clk 0:00:06]}  Bxg3 {[%clk 0:00:50]} 39. a4 {[%clk 0:00:05]}  Bf2 {[%clk 0:00:47]} 40. Bc1 {[%clk 0:00:04]}  g6 {[%clk 0:00:43]} 41. b5 {[%clk 0:00:04]}  axb5 {[%clk 0:00:42]} 42. axb5 {[%clk 0:00:05]}  Kd6 {[%clk 0:00:40]} 43. Ba3+ {[%clk 0:00:05]}  Kc7 {[%clk 0:00:40]} 44. Bf8 {[%clk 0:00:03]}  Bxe3 {[%clk 0:00:37]} 45. h5 {[%clk 0:00:03]}  Nf6+ {[%clk 0:00:36]} 46. Kf3 {[%clk 0:00:02]}  Bxd4 {[%clk 0:00:32]} 47. hxg6 {[%clk 0:00:02]}  Ng8 {[%clk 0:00:31]} 48. g7 {[%clk 0:00:02]}  Kb6 {[%clk 0:00:28]} 49. Kg4 {[%clk 0:00:01]}  Kxb5 {[%clk 0:00:28]} 50. Kf5 {[%clk 0:00:01]}  Kc4 {[%clk 0:00:17]} 51. Ke6 {[%clk 0:00:01]}  h5 {[%clk 0:00:14]} 52. Kf7 {[%clk 0:00:02]}  Nh6+ {[%clk 0:00:12]} 53. Kg6 {[%clk 0:00:01]}  Be3 {[%clk 0:00:13]} 0-1


[Site "https://www.chess.com"]

[Event "Titled Tuesday Blitz June 21 Early 2022"]
[White "Abdi, Farzad"]
[Black "Kvon, Andrey"]
[WhiteFideId "2076829"]
[BlackFideId "14201356"]
[WhiteElo "2270"]
[BlackElo "2458"]
[Result "0-1"]
[Round "04"]
[TimeControl "180+1"]
[Date "2022.06.21"]
[WhiteClock "0:00:23"]
[BlackClock "0:01:57"]

1. e4 {[%clk 0:03:00]}  e5 {[%clk 0:02:54]} 2. Nf3 {[%clk 0:03:01]}  Nc6 {[%clk 0:02:54]} 3. Bb5 {[%clk 0:03:01]}  a6 {[%clk 0:02:53]} 4. Bxc6 {[%clk 0:03:00]}  dxc6 {[%clk 0:02:54]} 5. Nc3 {[%clk 0:03:01]}  f6 {[%clk 0:02:53]} 6. d4 {[%clk 0:03:01]}  exd4 {[%clk 0:02:52]} 7. Qxd4 {[%clk 0:03:02]}  Qxd4 {[%clk 0:02:51]} 8. Nxd4 {[%clk 0:03:03]}  Bc5 {[%clk 0:02:52]} 9. Be3 {[%clk 0:03:00]}  Bb4 {[%clk 0:02:50]} 10. Ne2 {[%clk 0:02:59]}  Be6 {[%clk 0:02:49]} 11. a3 {[%clk 0:03:00]}  Bd6 {[%clk 0:02:47]} 12. Nf4 {[%clk 0:02:58]}  Bd7 {[%clk 0:02:47]} 13. O-O-O {[%clk 0:02:55]}  Ne7 {[%clk 0:02:47]} 14. f3 {[%clk 0:02:54]}  Ng6 {[%clk 0:02:46]} 15. Nxg6 {[%clk 0:02:54]}  hxg6 {[%clk 0:02:46]} 16. h3 {[%clk 0:02:52]}  g5 {[%clk 0:02:46]} 17. Rhe1 {[%clk 0:02:46]}  O-O-O {[%clk 0:02:43]} 18. Re2 {[%clk 0:02:47]}  Be6 {[%clk 0:02:43]} 19. Red2 {[%clk 0:02:47]}  b6 {[%clk 0:02:44]} 20. Ne2 {[%clk 0:02:45]}  c5 {[%clk 0:02:43]} 21. Kb1 {[%clk 0:02:40]}  Rde8 {[%clk 0:02:40]} 22. Bf2 {[%clk 0:02:41]}  Bc4 {[%clk 0:02:38]} 23. Ng3 {[%clk 0:02:35]}  g6 {[%clk 0:02:38]} 24. Nf1 {[%clk 0:02:33]}  Rd8 {[%clk 0:02:36]} 25. b3 {[%clk 0:02:23]}  Bxf1 {[%clk 0:02:27]} 26. Rxf1 {[%clk 0:02:22]}  c4 {[%clk 0:02:28]} 27. b4 {[%clk 0:02:15]}  Bf4 {[%clk 0:02:28]} 28. Rdd1 {[%clk 0:02:09]}  Be5 {[%clk 0:02:19]} 29. Be3 {[%clk 0:02:05]}  Bc3 {[%clk 0:02:19]} 30. Kc1 {[%clk 0:01:44]}  Kb7 {[%clk 0:02:18]} 31. Bd2 {[%clk 0:01:39]}  Be5 {[%clk 0:02:16]} 32. Be3 {[%clk 0:01:03]}  Kc6 {[%clk 0:02:13]} 33. Rxd8 {[%clk 0:00:52]}  Rxd8 {[%clk 0:02:14]} 34. Rf2 {[%clk 0:00:51]}  Bc3 {[%clk 0:02:07]} 35. f4 {[%clk 0:00:36]}  gxf4 {[%clk 0:02:06]} 36. Rxf4 {[%clk 0:00:34]}  Kb5 {[%clk 0:02:03]} 37. Rg4 {[%clk 0:00:34]}  Ka4 {[%clk 0:01:56]} 38. e5 {[%clk 0:00:24]}  Kxa3 {[%clk 0:01:55]} 39. Rxc4 {[%clk 0:00:24]}  Bb2+ {[%clk 0:01:55]} 40. Kb1 {[%clk 0:00:23]}  Rd1+ {[%clk 0:01:56]} 41. Bc1 {[%clk 0:00:23]}  Rxc1# {[%clk 0:01:57]} 0-1


[Site "https://www.chess.com"]

[Event "Titled Tuesday Blitz June 21 Early 2022"]
[White "Adewumi, Tanitoluwa"]
[Black "Mirzoev, Azer"]
[WhiteFideId "30966396"]
[BlackFideId "13400304"]
[WhiteElo "2542"]
[BlackElo "2525"]
[Result "1/2-1/2"]
[Round "04"]
[TimeControl "180+1"]
[Date "2022.06.21"]
[WhiteClock "0:00:04"]
[BlackClock "0:00:09"]

1. e4 {[%clk 0:03:00]}  c6 {[%clk 0:01:41]} 2. d4 {[%clk 0:02:09]}  d5 {[%clk 0:01:40]} 3. exd5 {[%clk 0:01:41]}  cxd5 {[%clk 0:01:41]} 4. Bd3 {[%clk 0:01:42]}  Nf6 {[%clk 0:01:40]} 5. c3 {[%clk 0:01:41]}  Nc6 {[%clk 0:01:40]} 6. Bf4 {[%clk 0:01:42]}  Bg4 {[%clk 0:01:40]} 7. Qb3 {[%clk 0:01:42]}  Qc8 {[%clk 0:01:39]} 8. Nd2 {[%clk 0:01:42]}  Bh5 {[%clk 0:01:37]} 9. Ngf3 {[%clk 0:01:41]}  Bg6 {[%clk 0:01:37]} 10. Bxg6 {[%clk 0:01:36]}  hxg6 {[%clk 0:01:36]} 11. O-O {[%clk 0:01:36]}  e6 {[%clk 0:01:36]} 12. Rae1 {[%clk 0:01:35]}  Be7 {[%clk 0:01:36]} 13. g3 {[%clk 0:01:35]}  O-O {[%clk 0:01:36]} 14. h4 {[%clk 0:01:35]}  a6 {[%clk 0:01:34]} 15. a4 {[%clk 0:01:29]}  Na5 {[%clk 0:01:26]} 16. Qc2 {[%clk 0:01:23]}  b5 {[%clk 0:01:25]} 17. axb5 {[%clk 0:01:10]}  axb5 {[%clk 0:01:26]} 18. Ne5 {[%clk 0:01:08]}  b4 {[%clk 0:01:24]} 19. Ra1 {[%clk 0:01:07]}  Nc6 {[%clk 0:01:19]} 20. Nb3 {[%clk 0:01:02]}  Nxe5 {[%clk 0:01:15]} 21. Bxe5 {[%clk 0:01:01]}  Nd7 {[%clk 0:01:13]} 22. Bf4 {[%clk 0:01:00]}  bxc3 {[%clk 0:01:12]} 23. bxc3 {[%clk 0:01:00]}  Qc6 {[%clk 0:01:08]} 24. Qd3 {[%clk 0:00:56]}  Rfc8 {[%clk 0:01:06]} 25. Bd2 {[%clk 0:00:46]}  Nf6 {[%clk 0:01:01]} 26. f3 {[%clk 0:00:39]}  Rcb8 {[%clk 0:00:59]} 27. Rxa8 {[%clk 0:00:37]}  Rxa8 {[%clk 0:00:57]} 28. Ra1 {[%clk 0:00:34]}  Rxa1+ {[%clk 0:00:54]} 29. Nxa1 {[%clk 0:00:35]}  Qa4 {[%clk 0:00:53]} 30. Qb1 {[%clk 0:00:35]}  Bd6 {[%clk 0:00:50]} 31. Kf2 {[%clk 0:00:35]}  Nh5 {[%clk 0:00:47]} 32. f4 {[%clk 0:00:32]}  Nf6 {[%clk 0:00:46]} 33. Nb3 {[%clk 0:00:27]}  Ne4+ {[%clk 0:00:45]} 34. Ke3 {[%clk 0:00:25]}  Nxg3 {[%clk 0:00:40]} 35. Nc5 {[%clk 0:00:22]}  Qa8 {[%clk 0:00:34]} 36. Nd3 {[%clk 0:00:18]}  Nf5+ {[%clk 0:00:33]} 37. Ke2 {[%clk 0:00:19]}  Qa6 {[%clk 0:00:30]} 38. Qg1 {[%clk 0:00:16]}  Nxh4 {[%clk 0:00:28]} 39. Qg5 {[%clk 0:00:16]}  Nf5 {[%clk 0:00:26]} 40. Qd8+ {[%clk 0:00:17]}  Kh7 {[%clk 0:00:13]} 41. Qg5 {[%clk 0:00:16]}  Be7 {[%clk 0:00:12]} 42. Qg4 {[%clk 0:00:15]}  Kg8 {[%clk 0:00:12]} 43. Qh3 {[%clk 0:00:15]}  Qb5 {[%clk 0:00:11]} 44. Qf3 {[%clk 0:00:15]}  Qb1 {[%clk 0:00:10]} 45. Bc1 {[%clk 0:00:14]}  Qc2+ {[%clk 0:00:09]} 46. Bd2 {[%clk 0:00:14]}  Qb3 {[%clk 0:00:09]} 47. Qg2 {[%clk 0:00:14]}  Qb1 {[%clk 0:00:09]} 48. Bc1 {[%clk 0:00:13]}  Qc2+ {[%clk 0:00:08]} 49. Bd2 {[%clk 0:00:14]}  Nd6 {[%clk 0:00:08]} 50. Nb4 {[%clk 0:00:12]}  Qe4+ {[%clk 0:00:06]} 51. Qxe4 {[%clk 0:00:12]}  Nxe4 {[%clk 0:00:07]} 52. Be1 {[%clk 0:00:13]}  Bd6 {[%clk 0:00:07]} 53. Nd3 {[%clk 0:00:13]}  f6 {[%clk 0:00:07]} 54. Kf3 {[%clk 0:00:13]}  Kf7 {[%clk 0:00:07]} 55. c4 {[%clk 0:00:14]}  dxc4 {[%clk 0:00:07]} 56. Nb2 {[%clk 0:00:12]}  c3 {[%clk 0:00:07]} 57. Nc4 {[%clk 0:00:12]}  f5 {[%clk 0:00:07]} 58. Bxc3 {[%clk 0:00:11]}  Ke7 {[%clk 0:00:07]} 59. Ba5 {[%clk 0:00:10]}  Kd7 {[%clk 0:00:07]} 60. Bb6 {[%clk 0:00:09]}  Kc6 {[%clk 0:00:07]} 61. Bd8 {[%clk 0:00:09]}  Kd5 {[%clk 0:00:07]} 62. Ne3+ {[%clk 0:00:09]}  Kxd4 {[%clk 0:00:07]} 63. Bb6+ {[%clk 0:00:10]}  Kd3 {[%clk 0:00:07]} 64. Ng2 {[%clk 0:00:10]}  Nd2+ {[%clk 0:00:07]} 65. Kf2 {[%clk 0:00:10]}  Nc4 {[%clk 0:00:06]} 66. Bd8 {[%clk 0:00:09]}  e5 {[%clk 0:00:05]} 67. fxe5 {[%clk 0:00:09]}  Bxe5 {[%clk 0:00:06]} 68. Bg5 {[%clk 0:00:09]}  Bf6 {[%clk 0:00:06]} 69. Bc1 {[%clk 0:00:07]}  Ke4 {[%clk 0:00:06]} 70. Nf4 {[%clk 0:00:07]}  Bg5 {[%clk 0:00:05]} 71. Ne2 {[%clk 0:00:04]}  Bxc1 {[%clk 0:00:05]} 72. Nxc1 {[%clk 0:00:05]}  g5 {[%clk 0:00:05]} 73. Ne2 {[%clk 0:00:05]}  Ke5 {[%clk 0:00:05]} 74. Kf3 {[%clk 0:00:05]}  Nd6 {[%clk 0:00:05]} 75. Ng3 {[%clk 0:00:05]}  g4+ {[%clk 0:00:06]} 76. Kf2 {[%clk 0:00:05]}  g5 {[%clk 0:00:06]} 77. Nf1 {[%clk 0:00:05]}  Ne4+ {[%clk 0:00:06]} 78. Ke3 {[%clk 0:00:05]}  f4+ {[%clk 0:00:07]} 79. Ke2 {[%clk 0:00:05]}  g3 {[%clk 0:00:08]} 80. Kf3 {[%clk 0:00:05]}  Kf5 {[%clk 0:00:08]} 81. Kg2 {[%clk 0:00:04]}  g4 {[%clk 0:00:07]} 82. Kg1 {[%clk 0:00:05]}  Kg5 {[%clk 0:00:07]} 83. Kg2 {[%clk 0:00:05]}  f3+ {[%clk 0:00:07]} 84. Kg1 {[%clk 0:00:05]}  Kf4 {[%clk 0:00:08]} 85. Kh1 {[%clk 0:00:03]}  g2+ {[%clk 0:00:08]} 86. Kh2 {[%clk 0:00:04]}  gxf1=Q {[%clk 0:00:09]} 1/2-1/2


[Site "https://www.chess.com"]

[Event "Titled Tuesday Blitz June 21 Early 2022"]
[White "Alexiadis, Hristos"]
[Black "Sukandar, Irine Kharisma"]
[WhiteFideId "4249623"]
[BlackFideId "7101937"]
[WhiteElo "2416"]
[BlackElo "2293"]
[Result "1-0"]
[Round "04"]
[TimeControl "180+1"]
[Date "2022.06.21"]
[WhiteClock "0:01:14"]
[BlackClock "0:00:04"]

1. e4 {[%clk 0:03:00]}  d5 {[%clk 0:02:59]} 2. exd5 {[%clk 0:03:00]}  Qxd5 {[%clk 0:02:59]} 3. Nf3 {[%clk 0:03:01]}  Nf6 {[%clk 0:02:58]} 4. Be2 {[%clk 0:03:01]}  Bg4 {[%clk 0:02:55]} 5. d4 {[%clk 0:03:00]}  c6 {[%clk 0:02:53]} 6. c4 {[%clk 0:03:00]}  Qa5+ {[%clk 0:02:53]} 7. Nc3 {[%clk 0:03:00]}  e6 {[%clk 0:02:53]} 8. O-O {[%clk 0:03:00]}  Be7 {[%clk 0:02:51]} 9. a3 {[%clk 0:02:57]}  O-O {[%clk 0:02:51]} 10. Ne5 {[%clk 0:02:55]}  Bxe2 {[%clk 0:02:50]} 11. Qxe2 {[%clk 0:02:56]}  Rd8 {[%clk 0:02:49]} 12. Re1 {[%clk 0:02:52]}  Qc7 {[%clk 0:02:38]} 13. Bf4 {[%clk 0:02:49]}  Bd6 {[%clk 0:02:35]} 14. Rad1 {[%clk 0:02:44]}  Qe7 {[%clk 0:02:28]} 15. Bg5 {[%clk 0:02:35]}  h6 {[%clk 0:02:28]} 16. Bh4 {[%clk 0:02:34]}  Nbd7 {[%clk 0:02:25]} 17. b4 {[%clk 0:02:27]}  a5 {[%clk 0:02:21]} 18. c5 {[%clk 0:02:26]}  Bc7 {[%clk 0:02:18]} 19. Ne4 {[%clk 0:02:25]}  axb4 {[%clk 0:02:11]} 20. axb4 {[%clk 0:02:25]}  g5 {[%clk 0:01:56]} 21. Nxg5 {[%clk 0:02:19]}  hxg5 {[%clk 0:01:56]} 22. Bxg5 {[%clk 0:02:20]}  Nf8 {[%clk 0:01:40]} 23. Rd3 {[%clk 0:02:18]}  N8h7 {[%clk 0:01:40]} 24. Bh4 {[%clk 0:02:14]}  Kf8 {[%clk 0:01:29]} 25. Qe3 {[%clk 0:02:12]}  Ke8 {[%clk 0:01:05]} 26. h3 {[%clk 0:02:11]}  Rd5 {[%clk 0:01:04]} 27. Qf3 {[%clk 0:01:57]}  Rad8 {[%clk 0:00:48]} 28. Ng4 {[%clk 0:01:56]}  Rf5 {[%clk 0:00:48]} 29. Qxf5 {[%clk 0:01:54]}  exf5 {[%clk 0:00:41]} 30. Nxf6+ {[%clk 0:01:55]}  Nxf6 {[%clk 0:00:38]} 31. Rxe7+ {[%clk 0:01:55]}  Kxe7 {[%clk 0:00:38]} 32. Re3+ {[%clk 0:01:56]}  Kf8 {[%clk 0:00:28]} 33. Bxf6 {[%clk 0:01:55]}  Ra8 {[%clk 0:00:28]} 34. g3 {[%clk 0:01:42]}  Ra1+ {[%clk 0:00:27]} 35. Kg2 {[%clk 0:01:42]}  Rb1 {[%clk 0:00:28]} 36. h4 {[%clk 0:01:37]}  Rxb4 {[%clk 0:00:27]} 37. h5 {[%clk 0:01:38]}  f4 {[%clk 0:00:27]} 38. gxf4 {[%clk 0:01:35]}  Bxf4 {[%clk 0:00:26]} 39. Re4 {[%clk 0:01:36]}  Bh6 {[%clk 0:00:26]} 40. Rg4 {[%clk 0:01:21]}  b6 {[%clk 0:00:13]} 41. Be5 {[%clk 0:01:20]}  bxc5 {[%clk 0:00:08]} 42. Bd6+ {[%clk 0:01:19]}  Ke8 {[%clk 0:00:08]} 43. Bxc5 {[%clk 0:01:19]}  Rb3 {[%clk 0:00:05]} 44. Rg8+ {[%clk 0:01:16]}  Kd7 {[%clk 0:00:05]} 45. Rh8 {[%clk 0:01:16]}  Bg5 {[%clk 0:00:04]} 46. h6 {[%clk 0:01:14]} 1-0


[Site "https://www.chess.com"]

[Event "Titled Tuesday Blitz June 21 Early 2022"]
[White "Antonio, Jorge Carlos"]
[Black "Reprintsev, Alexander"]
[WhiteFideId "113190"]
[BlackFideId "14100541"]
[WhiteElo "2247"]
[BlackElo "2108"]
[Result "0-1"]
[Round "04"]
[TimeControl "180+1"]
[Date "2022.06.21"]
[WhiteClock "0:00:03"]
[BlackClock "0:00:18"]

1. d4 {[%clk 0:03:00]}  d5 {[%clk 0:02:57]} 2. Nf3 {[%clk 0:03:00]}  Nc6 {[%clk 0:02:56]} 3. Bf4 {[%clk 0:03:00]}  Bg4 {[%clk 0:02:53]} 4. e3 {[%clk 0:02:51]}  e6 {[%clk 0:02:53]} 5. h3 {[%clk 0:02:52]}  Bf5 {[%clk 0:02:50]} 6. Bd3 {[%clk 0:02:51]}  Bxd3 {[%clk 0:02:43]} 7. cxd3 {[%clk 0:02:50]}  Bd6 {[%clk 0:02:44]} 8. Ne5 {[%clk 0:02:48]}  Nge7 {[%clk 0:02:41]} 9. Nxc6 {[%clk 0:02:47]}  bxc6 {[%clk 0:02:41]} 10. Bxd6 {[%clk 0:02:48]}  cxd6 {[%clk 0:02:41]} 11. O-O {[%clk 0:02:47]}  Rb8 {[%clk 0:02:38]} 12. b3 {[%clk 0:02:47]}  c5 {[%clk 0:02:37]} 13. dxc5 {[%clk 0:02:46]}  dxc5 {[%clk 0:02:37]} 14. Nc3 {[%clk 0:02:46]}  O-O {[%clk 0:02:37]} 15. Na4 {[%clk 0:02:45]}  Qd6 {[%clk 0:02:35]} 16. Rc1 {[%clk 0:02:40]}  Rfc8 {[%clk 0:02:35]} 17. Qg4 {[%clk 0:02:36]}  f5 {[%clk 0:02:27]} 18. Qe2 {[%clk 0:02:27]}  e5 {[%clk 0:02:24]} 19. Rfd1 {[%clk 0:02:26]}  d4 {[%clk 0:02:22]} 20. e4 {[%clk 0:02:25]}  g6 {[%clk 0:02:09]} 21. f3 {[%clk 0:02:20]}  Rc6 {[%clk 0:02:01]} 22. Rc4 {[%clk 0:02:19]}  Rb4 {[%clk 0:01:55]} 23. Rdc1 {[%clk 0:02:18]}  Rxc4 {[%clk 0:01:55]} 24. Rxc4 {[%clk 0:02:17]}  Nc8 {[%clk 0:01:55]} 25. Qc2 {[%clk 0:02:16]}  Nb6 {[%clk 0:01:55]} 26. Rxc5 {[%clk 0:02:13]}  Rxc5 {[%clk 0:01:47]} 27. Qxc5 {[%clk 0:02:12]}  Qxc5 {[%clk 0:01:40]} 28. Nxc5 {[%clk 0:02:08]}  Kf7 {[%clk 0:01:41]} 29. Kf1 {[%clk 0:01:57]}  Ke7 {[%clk 0:01:41]} 30. Ke2 {[%clk 0:01:57]}  Kd6 {[%clk 0:01:42]} 31. Nb7+ {[%clk 0:01:44]}  Kc6 {[%clk 0:01:41]} 32. Na5+ {[%clk 0:01:44]}  Kb5 {[%clk 0:01:34]} 33. Nc4 {[%clk 0:01:36]}  Nd7 {[%clk 0:01:34]} 34. Kd2 {[%clk 0:01:34]}  fxe4 {[%clk 0:01:30]} 35. fxe4 {[%clk 0:01:34]}  a5 {[%clk 0:01:26]} 36. a3 {[%clk 0:01:32]}  h5 {[%clk 0:01:21]} 37. Ke2 {[%clk 0:01:32]}  Nc5 {[%clk 0:01:14]} 38. b4 {[%clk 0:01:01]}  axb4 {[%clk 0:01:10]} 39. axb4 {[%clk 0:01:01]}  Nd7 {[%clk 0:01:10]} 40. Kd2 {[%clk 0:00:44]}  Kxb4 {[%clk 0:01:10]} 41. Kc2 {[%clk 0:00:44]}  h4 {[%clk 0:01:07]} 42. Nd6 {[%clk 0:00:43]}  Nf8 {[%clk 0:00:29]} 43. Nf7 {[%clk 0:00:40]}  Ne6 {[%clk 0:00:30]} 44. Nxe5 {[%clk 0:00:39]}  Nf4 {[%clk 0:00:30]} 45. Nxg6 {[%clk 0:00:28]}  Nxg6 {[%clk 0:00:30]} 46. Kd2 {[%clk 0:00:20]}  Nf4 {[%clk 0:00:30]} 47. e5 {[%clk 0:00:19]}  Kc5 {[%clk 0:00:29]} 48. e6 {[%clk 0:00:13]}  Kd6 {[%clk 0:00:27]} 49. Ke1 {[%clk 0:00:10]}  Nxd3+ {[%clk 0:00:17]} 50. Ke2 {[%clk 0:00:08]}  Ne5 {[%clk 0:00:18]} 51. Kf2 {[%clk 0:00:03]}  Kxe6 {[%clk 0:00:18]} 52. g3 {[%clk 0:00:03]}  hxg3+ {[%clk 0:00:18]} 53. Kxg3 {[%clk 0:00:04]}  Kf5 {[%clk 0:00:18]} 54. h4 {[%clk 0:00:03]}  d3 {[%clk 0:00:18]} 55. Kf2 {[%clk 0:00:03]}  Kg4 {[%clk 0:00:18]} 0-1


[Site "https://www.chess.com"]